bitfinex-derivatives/quotes_ETHF0:USTF0_20250316
["timestamp","ask_amount","ask_price","bid_price","bid_amount"]
[1742148256199,2.16773,1908.5,1908.4,0.00785752]
[1742148259998,1.3294,1908.5,1908.1,3.2078]
[1742148260200,0.83846,1908.2,1908.1,1.4359]
[1742148260497,5.30397,1908.2,1907.5,3.2078]
[1742148260700,0.83872,1907.7,1907.6,1.4359]
[1742148261203,0.83873,1907.6,1907.5,0.00785752]
[1742148261399,2.88793,1907.6,1907.5,0.00785752]
[1742148261695,8.75793,1907.6,1907.5,0.00785752]
[1742148262408,0.83885,1907.4,1907.2,0.83889]
[1742148262600,0.83885,1907.4,1907.3,1.4224]
[1742148262898,8.75796,1907.6,1907.3,1.4224]
[1742148263200,7.43604,1907.6,1907.4,0.83879]
[1742148263409,7.43604,1907.6,1907.5,1.4224]
[1742148263794,6.5973,1907.6,1907.5,2.26117]
[1742148263997,7.43603,1907.6,1907.5,1.4224]
[1742148264204,1.56603,1907.6,1907.5,1.4224]
[1742148265904,0.7273,1907.6,1907.5,2.26117]
[1742148267102,1.56603,1907.6,1907.5,2.26117]
[1742148267302,1.56603,1907.6,1907.5,1.4224]
[1742148268207,0.7273,1907.6,1907.5,2.26117]
[1742148269002,2.20739,1907.7,1907.5,2.26117]
[1742148269201,2.20739,1907.7,1907.6,1.3463]
[1742148269708,1.3687,1907.7,1907.6,2.18503]
[1742148270008,0.69635752,1907.8,1907.6,1.3463]
[1742148270207,1.53499752,1907.8,1907.7,1.3463]
[1742148270605,2.86909752,1907.8,1907.7,1.3463]
[1742148272007,0.83877,1907.5,1907.4,1.4475]
[1742148272409,2.22965,1907.6,1907.4,1.4475]
[1742148272603,2.22965,1907.6,1907.4,2.28629]
[1742148273114,2.22965,1907.6,1907.5,1.4475]
[1742148273615,1.3909,1907.6,1907.5,2.28627]
[1742148273911,0.83871,1907.7,1907.5,2.28627]
[1742148274211,2.18461,1907.7,1907.6,1.36]
[1742148275315,1.3459,1907.7,1907.6,2.19873]
[1742148275515,2.18458,1907.7,1907.6,1.36]
[1742148279609,0.83868,1907.7,1907.6,1.36]
[1742148279811,2.05805752,1907.8,1907.6,1.36]
[1742148280022,1.53500752,1907.8,1907.7,0.83868]
[1742148280814,0.00785752,1907.8,1907.7,2.19618]
[1742148281211,0.00785752,1907.8,1907.7,5.40398]
[1742148283518,0.00785752,1907.8,1907.7,2.19618]
[1742148284520,0.84649752,1907.8,1907.7,2.19618]
[1742148284818,0.00785752,1907.8,1907.7,2.19618]
[1742148285519,0.84649752,1907.8,1907.7,2.19618]
[1742148285721,0.00785752,1907.8,1907.7,2.19618]
[1742148286921,0.84649752,1907.8,1907.7,2.19618]
[1742148287222,0.84649752,1907.8,1907.7,1.3575]
[1742148287420,0.84649752,1907.8,1907.7,2.19618]
[1742148288426,0.00785752,1907.8,1907.7,2.19618]
[1742148289020,0.00785752,1907.8,1907.7,5.40398]
[1742148290022,0.84649752,1907.8,1907.7,5.40398]
[1742148290624,0.00785752,1907.8,1907.7,5.40398]
[1742148299125,0.84649752,1907.8,1907.7,5.40398]
[1742148299324,0.00785752,1907.8,1907.7,5.40398]
[1742148302019,0.6769,1908.2,1908.1,0.83851]
[1742148302225,2.1398,1908.3,1908.0,3.511]
[1742148302428,3.67064,1908.3,1908.2,0.83846]
[1742148303530,1.373,1908.3,1908.2,0.83846]
[1742148304025,1.373,1908.3,1908.2,2.21856]
[1742148304426,0.00785752,1908.4,1908.2,1.3801]
[1742148304728,0.00785752,1908.4,1908.3,7.55622]
[1742148305228,1.41155752,1908.4,1908.3,7.55622]
[1742148306230,2.24993752,1908.4,1908.3,6.7178]
[1742148306624,2.24993752,1908.4,1908.3,8.91562]
[1742148307024,2.24993752,1908.4,1908.3,8.0772]
[1742148307220,2.24993752,1908.4,1908.3,8.91562]
[1742148307733,2.24993752,1908.4,1908.3,8.0772]
[1742148307934,2.24993752,1908.4,1908.3,3.2078]
[1742148308823,2.24993752,1908.4,1908.3,4.5818]
[1742148309327,1.41155752,1908.4,1908.3,5.42022]
[1742148310031,0.00785752,1908.4,1908.3,5.42022]
[1742148310235,0.84623752,1908.4,1908.3,5.42022]
[1742148310439,2.16723752,1908.4,1908.3,5.42022]
[1742148311941,2.16723752,1908.4,1908.3,4.5818]
[1742148312841,2.16723752,1908.4,1908.3,5.42022]
[1742148313540,1.32885752,1908.4,1908.3,5.42022]
[1742148314541,2.16723752,1908.4,1908.3,5.42022]
[1742148316549,2.16723752,1908.4,1908.3,4.5818]
[1742148317540,2.16723752,1908.4,1908.3,5.42022]
[1742148317934,2.16723752,1908.4,1908.3,4.5818]
[1742148318544,1.32885752,1908.4,1908.3,5.42022]
[1742148319042,0.00785752,1908.4,1908.3,5.42022]
[1742148319639,1.46905752,1908.4,1908.3,5.42022]
[1742148320641,2.30743752,1908.4,1908.3,5.42022]
[1742148320837,1.46905752,1908.4,1908.3,5.42022]
[1742148321751,2.30743752,1908.4,1908.3,5.42022]
[1742148321950,2.30743752,1908.4,1908.3,4.5818]
[1742148322343,2.30743752,1908.4,1908.3,2.1101]
[1742148322646,0.83855,1908.0,1907.9,1.423]
[1742148323049,0.83855,1908.0,1907.9,2.2616]
[1742148323744,2.29534,1908.1,1907.9,2.2616]
[1742148323945,2.29534,1908.1,1908.0,1.423]
[1742148328450,2.29534,1908.1,1908.0,2.26155]
[1742148328651,1.4568,1908.1,1908.0,2.26155]
[1742148328843,7.263,1908.3,1908.0,2.26155]
[1742148329045,1.3447,1908.2,1907.9,0.83856]
[1742148329255,0.83851,1908.1,1907.9,0.83856]
[1742148329752,0.83851,1908.1,1907.8,3.509]
[1742148329753,1.3447,1908.2,1907.8,3.509]
[1742148330049,0.83851,1908.1,1907.9,0.83856]
[1742148330452,0.83851,1908.1,1908.0,0.83855]
[1742148331254,1.3447,1908.2,1907.8,3.509]
[1742148331451,2.026,1908.0,1907.9,0.83858]
[1742148332748,2.026,1908.0,1907.7,30.59627]
[1742148333053,0.83864,1907.8,1907.7,1.53827]
[1742148333253,0.83864,1907.8,1907.7,5.04627]
[1742148333457,2.23374,1907.8,1907.7,5.04627]
[1742148333755,0.83874,1907.6,1907.5,3.508]
[1742148333950,0.83874,1907.6,1907.5,4.34677]
[1742148334143,0.83874,1907.6,1907.5,3.508]
[1742148334350,0.83874,1907.6,1907.3,0.67953832]
[1742148334351,0.83882,1907.4,1907.3,0.00523832]
[1742148334548,1.568,1907.5,1907.3,0.84406832]
[1742148334756,0.83882,1907.4,1907.3,3.51323832]
[1742148335058,2.22212,1907.4,1907.3,4.35209832]
[1742148335354,2.22212,1907.4,1907.3,3.51323832]
[1742148335554,2.22212,1907.4,1907.3,4.35209832]
[1742148336255,1.3833,1907.4,1907.3,4.35209832]
[1742148336556,2.22212,1907.4,1907.3,3.51323832]
[1742148337459,2.22212,1907.4,1907.3,4.35209832]
[1742148337648,2.22212,1907.4,1907.3,3.51323832]
[1742148338255,2.22212,1907.4,1907.3,4.35209832]
[1742148339359,2.92272,1907.4,1907.3,4.35209832]
[1742148339556,2.92272,1907.4,1907.3,0.00523832]
[1742148340658,8.79272,1907.4,1907.3,0.00523832]
[1742148342160,2.09765,1906.9,1906.0,6.0]
[1742148342451,0.83934,1906.2,1906.1,0.6871]
[1742148342650,0.83933,1906.3,1906.1,4.1951]
[1742148343557,0.83939,1906.1,1906.0,0.00785752]
[1742148344754,0.83961,1905.6,1905.5,1.4578]
[1742148349059,1.3638,1905.8,1905.1,0.7165]
[1742148349364,0.83983,1905.1,1905.0,0.7126]
[1742148350059,0.83987,1905.0,1904.9,3.509]
[1742148350256,0.83996,1904.8,1904.7,29.75]
[1742148350461,0.83996,1904.8,1904.7,33.26]
[1742148352363,0.83996,1904.8,1904.7,5.6269]
[1742148353061,0.84014,1904.4,1904.3,4.2414]
[1742148356162,0.84018,1904.3,1904.2,1.4178]
[1742148360474,2.10049,1904.3,1903.9,0.6863]
[1742148360772,0.84027,1904.1,1904.0,4.9685]
[1742148360971,0.84027,1904.1,1904.0,1.4565]
[1742148361268,0.84027,1904.1,1904.0,4.9685]
[1742148361475,0.00785752,1904.2,1904.0,4.9685]
[1742148361666,0.00785752,1904.2,1904.1,0.84027]
[1742148361868,0.00785752,1904.2,1904.1,1.54017]
[1742148362067,0.84808752,1904.2,1904.1,0.6999]
[1742148363068,0.84808752,1904.2,1904.0,4.9685]
[1742148363069,0.84027,1904.1,1904.0,4.9685]
[1742148363368,2.17627,1904.1,1904.0,1.4565]
[1742148363571,0.84036,1903.9,1903.8,4.9193]
[1742148363870,2.1009,1903.9,1903.6,3.512]
[1742148364177,2.10087,1904.0,1903.4,6.42228]
[1742148364178,0.84051,1903.6,1903.4,6.42228]
[1742148364574,0.84049,1903.6,1903.4,5.5817]
[1742148364771,0.84046,1903.7,1903.5,0.84051]
[1742148364974,0.84046,1903.7,1903.6,1.4073]
[1742148365368,5.87,1903.9,1903.7,0.84045]
[1742148365569,5.87,1903.9,1903.8,4.8543]
[1742148365769,0.84036,1903.9,1903.8,4.8543]
[1742148366265,1.4387,1904.0,1903.8,5.6947]
[1742148366471,2.27904,1904.0,1903.9,1.3413]
[1742148367168,1.4387,1904.0,1903.9,2.18166]
[1742148367370,0.00785752,1904.2,1903.9,2.18166]
[1742148367371,0.00785752,1904.2,1903.9,1.3413]
[1742148367667,1.44655752,1904.2,1904.1,0.84027]
[1742148367873,0.00785752,1904.2,1904.1,4.35327]
[1742148368074,8.16299,1904.5,1904.4,0.84014]
[1742148368273,1.4529,1904.5,1904.4,3.513]
[1742148368470,1.4529,1904.5,1904.4,4.35314]
[1742148368875,0.6992,1904.8,1904.6,0.84003]
[1742148369179,1.53919,1904.8,1904.7,3.513]
[1742148369374,5.87787835,1904.9,1904.8,0.83996]
[1742148369675,5.87787835,1904.9,1904.7,3.513]
[1742148369676,0.83996,1904.8,1904.7,3.513]
[1742148373478,11.883,1904.8,1903.2,9.513]
[1742148373676,7.2497,1904.7,1902.9,6.93217768]
[1742148373880,0.84083,1902.9,1902.7,0.84089]
[1742148374079,3.513,1903.7,1902.5,1.4651]
[1742148374383,2.10174,1903.2,1902.6,3.513]
[1742148374581,2.10179,1903.1,1902.6,3.513]
[1742148374776,0.84083,1902.9,1902.7,1.4191]
[1742148374979,0.84084,1902.8,1902.7,4.9321]
[1742148375179,0.84084,1902.8,1902.7,3.513]
[1742148375573,11.883,1902.8,1901.1,6.5256]
[1742148375877,2.10248,1902.5,1901.3,1.4191]
[1742148376183,2.10248,1902.5,1900.8,26.58974795]
[1742148376184,2.103,1902.0,1900.8,20.58974795]
[1742148376485,0.8416,1901.1,1901.0,15.22892836]
[1742148376983,2.10347,1901.6,1901.0,15.22892836]
[1742148377174,0.8416,1901.1,1901.0,11.84707836]
[1742148377582,2.10366,1901.5,1901.0,11.84707836]
[1742148377776,0.84155,1901.2,1901.1,1.4636]
[1742148378382,0.84144,1901.5,1901.1,3.9636]
[1742148378584,0.84146,1901.4,1901.2,3.659]
[1742148378775,2.78977,1901.9,1901.2,3.659]
[1742148378776,0.84139,1901.6,1901.2,5.1226]
[1742148378975,0.84151,1901.3,1901.2,1.4636]
[1742148379383,2.10333,1901.7,1901.2,1.4636]
[1742148379679,0.84151,1901.3,1901.2,1.4636]
[1742148380284,0.84155,1901.2,1901.1,3.667]
[1742148380485,0.84182,1900.6,1900.5,0.6599]
[1742148380683,0.8418,1900.7,1900.5,4.3379]
[1742148380981,0.00787835,1900.7,1900.5,5.17972]
[1742148381291,0.84182,1900.6,1900.5,4.3379]
[1742148381586,0.84182,1900.6,1900.5,4.3389]
[1742148381790,0.84186,1900.5,1900.4,29.121]
[1742148382082,0.84186,1900.5,1900.4,3.683]
[1742148383481,6.183,1900.5,1899.3,0.5264]
[1742148383785,6.183,1900.5,1898.4,20.58974795]
[1742148383786,17.1847,1900.4,1898.4,20.58974795]
[1742148383986,23.98878,1900.3,1898.8,1.3314]
[1742148384187,2.10545,1899.8,1898.9,3.939]
[1742148384484,0.84247,1899.2,1899.0,1.3314]
[1742148384688,0.00787835,1899.6,1899.0,1.3314]
[1742148384890,0.00787835,1899.6,1899.3,0.84239]
[1742148385087,0.00787835,1899.6,1899.5,0.84231]
[1742148385294,0.00787835,1899.6,1899.4,5.2814]
[1742148385486,1.3447,1900.1,1899.4,5.2814]
[1742148385785,0.6699,1900.3,1899.4,5.2814]
[1742148385990,0.6901,1900.9,1899.8,2.10544]
[1742148386178,29.159,1901.7,1900.4,0.84187]
[1742148386179,2.10371,1901.4,1900.4,0.84187]
[1742148386379,0.8417,1900.9,1900.5,5.3548]
[1742148386584,0.84173,1900.8,1900.5,5.3548]
[1742148386785,0.00787835,1900.9,1900.5,5.36267835]
[1742148386991,0.84957835,1900.9,1900.5,6.20451835]
[1742148387191,0.00787835,1900.9,1900.5,5.36267835]
[1742148387389,0.00787835,1900.9,1900.7,0.84175]
[1742148387689,0.00787835,1900.9,1900.8,5.3518]
[1742148387890,0.00787835,1900.9,1900.8,6.19353]
[1742148388091,0.00787835,1900.9,1900.8,5.3518]
[1742148388290,0.00787835,1900.9,1900.8,6.19353]
[1742148388491,2.2276,1901.4,1901.0,0.84161]
[1742148388690,1.3861,1901.4,1901.1,5.3508]
[1742148388885,5.87,1901.9,1901.2,1.3898]
[1742148389086,0.84141,1901.6,1901.2,1.3898]
[1742148389395,9.3292,1902.3,1901.6,0.84136]
[1742148389690,0.84129,1901.8,1901.7,5.3646]
[1742148390097,0.84129,1901.8,1901.7,3.957]
[1742148390288,0.84129,1901.8,1901.7,2.9439]
[1742148391597,1.35187835,1902.1,1901.7,2.9439]
[1742148391793,0.84125,1901.9,1901.7,4.3515]
[1742148391995,1.35187835,1902.1,1901.8,0.84129]
[1742148392291,1.35187835,1902.1,1901.7,4.3515]
[1742148392292,0.84122,1902.0,1901.7,4.3515]
[1742148392490,2.19305835,1902.1,1901.7,5.19279]
[1742148392691,1.35187835,1902.1,1901.7,4.3515]
[1742148392892,2.19303835,1902.1,1901.8,0.84126]
[1742148393191,0.00787835,1902.1,1902.0,0.8412]
[1742148393490,0.00787835,1902.1,1902.0,4.7972]
[1742148400399,0.84904835,1902.1,1901.9,2.19041]
[1742148400700,0.84904835,1902.1,1901.9,2.19042]
[1742148400905,0.84131,1901.8,1901.6,0.84922835]
[1742148401100,0.84128,1901.9,1901.7,0.84133]
[1742148401404,5.87787835,1902.1,1901.6,0.00787835]
[1742148401604,0.8412,1902.0,1901.9,0.84121]
[1742148401801,1.4382,1902.0,1901.9,0.84121]
[1742148402195,1.4382,1902.0,1901.8,4.75425]
[1742148402400,2.27941,1902.0,1901.8,3.913]
[1742148402600,1.4382,1902.0,1901.9,0.84124]
[1742148403699,1.4382,1902.0,1901.9,2.19484]
[1742148404206,2.2794,1902.0,1901.8,4.75425]
[1742148405204,1.4382,1902.0,1901.9,0.84124]
[1742148405610,2.2794,1902.0,1901.9,0.84124]
[1742148405805,2.2794,1902.0,1901.8,4.75425]
[1742148406105,2.2794,1902.0,1901.9,0.84124]
[1742148406308,2.2794,1902.0,1901.6,0.00787835]
[1742148406309,0.84133,1901.7,1901.6,0.00787835]
[1742148406495,0.84145,1901.5,1901.3,0.84148]
[1742148406900,1.3395,1901.4,1901.3,0.84148]
[1742148408803,5.87,1901.7,1901.6,0.84137]
[1742148409003,6.71133,1901.7,1901.6,0.84137]
[1742148410307,0.84142,1901.5,1901.4,0.84145]
[1742148410508,2.2077,1901.6,1901.4,0.84145]
[1742148410713,2.2077,1901.6,1901.5,0.84142]
[1742148410912,1.3663,1901.6,1901.5,0.84142]
[1742148411412,5.87,1901.7,1901.6,0.84137]
[1742148411607,5.87,1901.7,1901.6,2.23347]
[1742148412304,7.2363,1901.7,1901.6,2.23347]
[1742148412805,1.3663,1901.7,1901.6,2.23347]
[1742148413005,2.20763,1901.7,1901.6,0.84137]
[1742148413512,1.3663,1901.7,1901.6,0.84137]
[1742148413905,7.2114,1901.9,1901.6,1.3814]
[1742148414101,1.3414,1901.9,1901.8,0.84129]
[1742148414502,5.87787835,1902.1,1902.0,0.8412]
[1742148414704,0.00787835,1902.1,1902.0,0.8412]
[1742148414904,1.34927835,1902.1,1902.0,0.8412]
[1742148416700,1.34927835,1902.1,1901.9,1.3814]
[1742148416906,5.87,1902.0,1901.4,3.876]
[1742148417210,5.87,1902.0,1901.2,2.11169835]
[1742148417211,0.84144,1901.5,1901.3,0.84149]
[1742148417513,1.4464,1901.4,1901.3,0.84149]
[1742148418008,1.4464,1901.4,1901.3,2.23859]
[1742148418309,5.87,1901.6,1901.5,0.8414]
[1742148418515,0.84144,1901.5,1901.2,3.88287835]
[1742148418716,1.4464,1901.4,1901.2,6.12148835]
[1742148418908,1.4464,1901.4,1901.2,2.24648835]
[1742148419112,1.4464,1901.4,1901.2,0.00787835]
[1742148419317,1.4464,1901.4,1901.3,0.84151]
[1742148419703,6.7114,1901.6,1901.2,1.40497835]
[1742148419704,5.87,1901.6,1901.5,0.84142]
[1742148420019,8.07558,1901.6,1901.4,4.71144]
[1742148420312,8.0756,1901.6,1901.4,4.71145]
[1742148421313,7.2342,1901.6,1901.5,0.84142]
[1742148421709,7.2342,1901.6,1901.5,2.28332]
[1742148422711,8.07557,1901.6,1901.5,1.4419]
[1742148423917,8.07557,1901.6,1901.4,3.87]
[1742148424107,8.07557,1901.6,1901.4,0.84145]
[1742148424108,2.20557,1901.6,1901.4,0.84145]
[1742148425410,2.20557,1901.6,1901.4,0.84144]
[1742148425607,0.84149,1901.4,1901.2,0.84939835]
[1742148425813,2.23111,1901.3,1901.2,0.00787835]
[1742148426013,1.3896,1901.3,1901.0,0.84163]
[1742148426214,0.84162,1901.1,1900.9,4.69167]
[1742148426409,1.3896,1901.0,1900.9,4.69167]
[1742148426920,1.3896,1901.0,1900.8,0.8417]
[1742148427109,3.49377,1901.0,1900.3,3.852]
[1742148427315,7.97422,1900.9,1900.4,0.84189]
[1742148427515,7.97422,1900.9,1900.2,2.10499]
[1742148427516,1.3896,1900.8,1900.2,2.10499]
[1742148427721,1.3896,1900.8,1900.7,0.84177]
[1742148428517,5.87,1900.9,1900.8,0.84173]
[1742148428714,1.39747835,1901.1,1901.0,0.84164]
[1742148428910,0.00787835,1901.1,1901.0,0.84164]
[1742148429319,0.00787835,1901.1,1900.7,0.84176]
[1742148429517,1.34707835,1901.1,1900.8,0.84172]
[1742148429715,0.84167,1901.0,1900.8,0.84172]
[1742148429915,0.84948835,1901.1,1901.0,0.84164]
[1742148430116,0.00787835,1901.1,1901.0,0.84164]
[1742148430717,0.00787835,1901.1,1901.0,2.26784]
[1742148432123,0.84947835,1901.1,1901.0,1.4262]
[1742148432322,0.00787835,1901.1,1901.0,0.84164]
[1742148432626,0.00787835,1901.1,1901.0,2.20124]
[1742148437516,0.00787835,1901.1,1901.0,1.3596]
[1742148437825,0.00787835,1901.1,1901.0,0.84164]
[1742148438323,0.84948835,1901.1,1900.8,3.85]
[1742148438524,0.84948835,1901.1,1900.9,2.16337]
[1742148438729,0.00787835,1901.1,1901.0,0.84164]
[1742148439816,0.00787835,1901.1,1900.9,2.16336]
[1742148439817,0.84947835,1901.1,1900.9,2.16336]
[1742148440016,0.00787835,1901.1,1900.8,3.85]
[1742148440227,0.00787835,1901.1,1901.0,0.84164]
[1742148441424,5.87,1901.5,1901.4,0.84146]
[1742148441730,7.40639,1901.8,1901.6,0.84135]
[1742148442025,0.84138,1901.6,1901.4,0.84146]
[1742148442227,0.84136,1901.7,1901.5,0.8414]
[1742148442530,0.84923835,1901.7,1901.5,0.8414]
[1742148442833,0.84213,1899.9,1899.8,0.42408453]
[1742148443123,5.87,1899.9,1899.4,17.56831602]
[1742148443328,5.87,1900.2,1899.4,21.70431602]
[1742148443531,0.84231,1899.5,1899.4,15.27478097]
[1742148443721,0.84239,1899.3,1899.2,15.88994876]
[1742148443919,0.84239,1899.3,1899.2,13.95020524]
[1742148444124,2.99446,1899.4,1899.2,13.95020524]
[1742148444337,2.1521,1899.4,1899.3,0.84239]
[1742148444536,1.4287,1899.4,1899.3,0.84239]
[1742148444740,1.4287,1899.4,1899.3,2.20609]
[1742148445228,1.4287,1899.4,1899.2,13.95020524]
[1742148445531,1.4287,1899.4,1899.3,0.84239]
[1742148445922,2.27105,1899.4,1899.3,0.84239]
[1742148446137,1.4287,1899.4,1899.2,14.79263524]
[1742148446427,0.84239,1899.3,1899.2,13.95020524]
[1742148446833,1.3487,1899.3,1899.2,0.84244]
[1742148447033,6.71233,1899.5,1899.3,0.84236]
[1742148447220,1.3348,1899.4,1899.3,0.84236]
[1742148447723,0.00787835,1899.6,1899.5,0.84231]
[1742148447932,1.34267835,1899.6,1899.5,0.84231]
[1742148448132,1.34267835,1899.6,1899.3,6.26197]
[1742148448133,0.00787835,1899.6,1899.4,0.84232]
[1742148448326,0.00787835,1899.6,1899.5,0.84231]
[1742148448522,0.00787835,1899.6,1899.1,0.6654]
[1742148448729,1.34267835,1899.6,1899.4,0.84235]
[1742148448923,2.18496835,1899.6,1899.1,1.4113]
[1742148449130,0.84231,1899.5,1899.1,1.4113]
[1742148449431,2.17711,1899.5,1899.4,0.84235]
[1742148449937,1.3348,1899.5,1899.4,0.84235]
[1742148450536,1.3348,1899.5,1899.1,1.4113]
[1742148450737,1.3348,1899.5,1899.4,0.84235]
[1742148451535,0.00787835,1899.6,1899.5,0.84231]
[1742148452236,0.00787835,1899.6,1899.5,2.27911]
[1742148453337,7.3128,1900.1,1899.5,1.4368]
[1742148453537,8.15486,1900.1,1899.9,0.84212]
[1742148454036,7.3128,1900.1,1900.0,0.84208]
[1742148454237,5.87,1900.1,1900.0,0.84208]
[1742148454734,0.00787835,1900.2,1900.0,4.15]
[1742148454934,5.87,1900.6,1900.0,5.5171]
[1742148455133,0.84191,1900.4,1900.0,5.5171]
[1742148455335,0.84192,1900.4,1900.2,0.84198]
[1742148455642,2.28469,1900.5,1900.3,0.84195]
[1742148455947,1.4428,1900.5,1900.3,0.84193]
[1742148456351,1.4428,1900.5,1900.4,0.84191]
[1742148456639,2.28467,1900.5,1900.0,5.5171]
[1742148456838,1.4428,1900.5,1900.0,5.5171]
[1742148457236,0.00787835,1900.6,1900.0,5.5171]
[1742148457435,1.4321,1901.3,1900.5,2.10457]
[1742148457731,1.4321,1901.3,1900.6,8.43785]
[1742148457932,7.3021,1901.3,1900.8,0.84172]
[1742148458133,0.84166,1901.0,1900.7,5.05575]
[1742148458339,1.4321,1900.9,1900.8,1.4052]
[1742148458535,1.4321,1900.9,1900.8,2.24693]
[1742148459139,0.00787835,1901.0,1900.9,0.84168]
[1742148459336,0.84951835,1901.0,1900.9,1.4238]
[1742148459539,0.00787835,1901.0,1900.9,1.4238]
[1742148459942,0.00787835,1901.0,1900.9,2.26548]
[1742148465250,0.84951835,1901.0,1900.9,1.4238]
[1742148465441,1.47167835,1901.0,1900.9,2.26548]
[1742148466349,0.00787835,1901.0,1900.9,2.26548]
[1742148467145,0.00787835,1901.0,1900.9,6.43348]
[1742148471046,0.00787835,1901.0,1900.9,2.26548]
[1742148471252,0.00787835,1901.0,1900.9,6.40448]
[1742148472943,5.87,1901.5,1901.0,2.1041]
[1742148473147,1.4641,1901.6,1901.5,0.84142]
[1742148474054,0.6766,1901.8,1901.7,0.84133]
[1742148474252,2.1407,1901.8,1901.7,0.84133]
[1742148474551,5.87787835,1901.9,1901.8,0.84129]
[1742148475458,0.00787835,1901.9,1901.8,0.84129]
[1742148477053,0.84129,1901.8,1901.7,0.00787835]
[1742148477849,1.3829,1901.8,1901.7,0.84920835]
[1742148478051,2.22419,1901.8,1901.7,0.00787835]
[1742148478447,8.78319,1901.8,1901.7,0.00787835]
[1742148478647,8.78319,1901.8,1901.7,0.84920835]
[1742148478860,7.9419,1901.8,1901.7,0.84920835]
[1742148479456,8.78319,1901.8,1901.7,0.00787835]
[1742148479660,7.9419,1901.8,1901.7,0.84920835]
[1742148480157,7.2529,1901.8,1901.7,0.84920835]
[1742148480355,0.71497835,1901.9,1901.8,0.84129]
[1742148480745,0.84129,1901.8,1901.7,1.42237835]
[1742148480948,15.84,1901.8,1900.3,0.61792126]
[1742148481148,10.7341,1901.7,1900.1,1.3588]
[1742148481353,0.84208,1900.0,1899.9,1.66527171]
[1742148481560,4.186,1900.1,1899.1,0.6962]
[1742148481856,0.8422,1899.8,1899.2,0.84241]
[1742148482054,0.84215,1899.9,1899.3,2.17679]
[1742148482255,0.00787835,1899.7,1899.4,4.192]
[1742148482454,0.00787835,1899.7,1899.5,1.3344]
[1742148483163,0.00787835,1899.7,1899.4,4.192]
[1742148483562,0.00787835,1899.7,1899.5,1.3344]
[1742148484260,0.85013835,1899.7,1899.5,1.3344]
[1742148484860,0.84226,1899.6,1899.5,1.3344]
[1742148485261,0.84235,1899.4,1899.3,0.00787835]
[1742148485767,1.26601,1899.4,1899.3,0.00787835]
[1742148485965,4.47381,1899.4,1899.3,8.35e-06]
[1742148486662,11.18181,1899.4,1899.3,8.35e-06]
[1742148486961,17.05181,1899.4,1899.3,8.35e-06]
[1742148490967,14.55181,1899.4,1899.3,8.35e-06]
[1742148491466,14.53981,1899.4,1899.3,8.35e-06]
[1742148491667,8.66981,1899.4,1899.3,8.35e-06]
[1742148492269,14.53981,1899.4,1899.3,8.35e-06]
[1742148492767,14.11615,1899.4,1899.3,8.35e-06]
[1742148492967,16.61615,1899.4,1899.3,8.35e-06]
[1742148493360,18.00415,1899.4,1899.3,8.35e-06]
[1742148493975,18.42450775,1899.4,1899.3,8.35e-06]
[1742148495265,15.91550775,1899.4,1899.3,8.35e-06]
[1742148495771,15.49515,1899.4,1899.3,8.35e-06]
[1742148495967,11.30815,1899.4,1899.3,8.35e-06]
[1742148496169,4.05015,1899.4,1899.3,8.35e-06]
[1742148496867,0.84235,1899.4,1899.3,8.35e-06]
[1742148497569,0.85011835,1899.7,1899.5,0.84231]
[1742148497759,0.85011835,1899.7,1899.6,1.3426]
[1742148497959,3.2078,1900.0,1899.6,1.3426]
[1742148498172,0.8422,1899.8,1899.6,1.3426]
[1742148498365,0.8422,1899.8,1899.6,2.18485]
[1742148498670,5.87,1900.1,1899.6,1.3426]
[1742148498866,4.04987,1900.1,1899.7,1.3538]
[1742148499065,0.84205,1900.1,1899.9,0.84211]
[1742148499267,0.84201,1900.2,1900.0,2.19586]
[1742148499473,0.84201,1900.2,1900.0,2.19585]
[1742148499474,0.00787835,1900.2,1900.0,2.19585]
[1742148499669,4.04984,1900.1,1900.0,1.3538]
[1742148499971,0.84204,1900.1,1900.0,1.3538]
[1742148500570,0.84990835,1900.2,1900.0,2.19588]
[1742148500770,0.84204,1900.1,1900.0,2.19588]
[1742148501070,9.91984,1900.1,1900.0,1.3538]
[1742148501265,0.84225,1899.7,1899.5,5.02129]
[1742148501471,0.84225,1899.7,1899.6,1.3538]
[1742148502268,4.05005,1899.7,1899.6,1.3538]
[1742148503169,3.2078,1899.9,1899.6,1.3538]
[1742148503671,0.84222,1899.7,1899.6,1.3538]
[1742148504866,3.2078,1899.9,1899.6,1.3538]
[1742148505067,0.84222,1899.7,1899.6,1.3538]
[1742148505371,4.04994,1899.9,1899.7,0.84222]
[1742148505567,3.2078,1899.9,1899.8,2.18587]
[1742148505971,0.84206,1900.1,1899.9,0.84213]
[1742148506178,0.84206,1900.1,1900.0,1.3437]
[1742148507668,0.84204,1900.1,1900.0,1.3437]
[1742148507863,1.26472165,1900.1,1900.0,1.3437]
[1742148508271,0.42268165,1900.1,1900.0,2.18578]
[1742148509187,1.26472165,1900.1,1900.0,1.3437]
[1742148509390,0.84216,1899.9,1899.7,0.84222]
[1742148509581,0.84226,1899.6,1899.5,1.4324]
[1742148509782,0.84224,1899.7,1899.5,2.27471]
[1742148510085,0.42268165,1899.6,1899.5,2.27471]
[1742148510891,0.42268165,1899.7,1899.6,0.84226]
[1742148512188,0.42268165,1899.7,1899.5,1.4324]
[1742148512388,1.26491165,1899.7,1899.5,1.4324]
[1742148513290,0.42268165,1899.6,1899.5,2.27471]
[1742148513794,4.05,1899.8,1899.7,0.84222]
[1742148513987,5.87,1900.1,1899.8,0.84217]
[1742148514185,5.87,1900.1,1899.9,2.19473]
[1742148514383,7.36067835,1900.2,1899.9,1.3526]